fUST/lending_fUST_20240721
["ID","MTS","AMOUNT","RATE_DAILY","PERIOD"]
[332731218,1721491202846,527.625582,9.999e-05,2]
[332731254,1721491229678,663.36487868,9.999e-05,2]
[332731255,1721491239271,533.13715373,9.999e-05,2]
[332731256,1721491241389,521.17738443,9.999e-05,2]
[332731257,1721491242121,848.26931223,9.999e-05,2]
[332731258,1721491250654,357.54267543,9.999e-05,2]
[332731259,1721491285230,941.37701693,9.999e-05,2]
[332731260,1721491311550,309.47389515,9.999e-05,2]
[332731261,1721491332684,346.15703621,9.999e-05,2]
[332731262,1721491338082,283.60414699,9.999e-05,2]
[332731263,1721491347194,204.57366757,0.0001202,2]
[332731264,1721491372275,941.37701693,9.999e-05,2]
[332731265,1721491374868,493.57135447,9.999e-05,2]
[332731266,1721491388870,319.30268651,9.999e-05,2]
[332731267,1721491393818,155.68015214,9.999e-05,2]
[332731268,1721491418942,156.2865266,9.999e-05,2]
[332731270,1721491446779,994.11273453,9.999e-05,2]
[332731271,1721491449823,159.95554966,9.999e-05,2]
[332731272,1721491449898,245.0,9.999e-05,2]
[332731273,1721491460779,159.95554966,9.999e-05,2]
[332731274,1721491467230,941.37701693,9.999e-05,2]
[332731275,1721491468800,814.68600621,9.999e-05,2]
[332731276,1721491472798,155.31248135,9.999e-05,2]
[332731277,1721491476528,402.60952539,9.999e-05,2]
[332731278,1721491481003,492.91168977,9.999e-05,2]
[332731279,1721491490765,250.0,0.0001177,2]
[332731280,1721491490983,250.0,0.00011803,2]
[332731281,1721491491201,250.0,0.00011835,2]
[332731282,1721491491411,250.0,0.00011867,2]
[332731283,1721491491810,250.0,0.00011899,2]
[332731284,1721491492018,250.0,0.00011932,2]
[332731285,1721491492256,250.0,0.00011964,2]
[332731286,1721491492490,250.0,0.00011996,2]
[332731287,1721491520452,162.85283202,9.999e-05,2]
[332731321,1721491533938,4818.3630215,0.0001128,2]
[332731323,1721491541822,684.62001104,9.999e-05,2]
[332731324,1721491576782,162.06286641,9.999e-05,2]
[332731325,1721491588980,236.8694657,0.0001143,2]
[332731327,1721491619163,-250.0,0.00012028,2]
[332731328,1721491619185,-250.0,0.00012061,2]
[332731329,1721491619208,-250.0,0.00012093,2]
[332731330,1721491619232,-500.61107229,0.00012119,2]
[332731331,1721491619253,-279.32989247,0.0001212,2]
[332731332,1721491619275,-343.23122269,0.0001212,2]
[332731333,1721491619296,-663.36487868,0.0001212,2]
[332731334,1721491619526,-250.0,0.00012125,2]
[332731335,1721491619551,-93.2128228,0.00012158,2]
[332731350,1721491758144,-156.7871772,0.00012158,2]
[332731351,1721491758167,-300.0,0.0001217,2]
[332731352,1721491758193,-300.0,0.0001217,2]
[332731353,1721491758216,-24900.0,0.00012171,2]
[332731354,1721491758238,-250.0,0.0001219,2]
[332731355,1721491758262,-250.0,0.00012222,2]
[332731356,1721491758287,-250.0,0.00012254,2]
[332731357,1721491758313,-250.0,0.00012287,2]
[332731358,1721491758335,-250.0,0.00012319,2]
[332731359,1721491758356,-250.0,0.00012351,2]
[332731360,1721491758378,-250.0,0.00012383,2]
[332731361,1721491758399,-3856.68291457,0.000129,2]
[332731362,1721491758421,-420.0,0.00013357,2]
[332731363,1721491758443,-3856.68291453,0.00013372,2]
[332731364,1721491758464,-420.0,0.00013387,2]
[332731365,1721491768506,541.61604231,0.00012119,2]
[332731366,1721491769133,-83.61164765,0.00012119,2]
[332731367,1721491786038,887.20196723,9.999e-05,2]
[332731368,1721491802159,250.0,0.00012694,2]
[332731377,1721491832089,-1612.89123154,0.00013598,2]
[332731422,1721491838326,1383.88428512,0.00012682,2]
[332731423,1721491838433,-23516.11571488,0.00012682,2]
[332731424,1721491838442,-7351.71339097,0.00013598,2]
[332731425,1721491838451,-300.0,0.00013649,2]
[332731426,1721491838460,-8964.60462249,0.0001365,2]
[332731427,1721491838469,-152836.94641,0.00013688,2]
[332731428,1721491838478,-50945.6488034,0.00013691,2]
[332731429,1721491838488,-500.0,0.00013698,2]
[332731430,1721491838497,-500.0,0.00013698,2]
[332731431,1721491838507,-500.0,0.00013698,2]
[332731432,1721491838516,-500.0,0.00013698,2]
[332731433,1721491838525,-500.0,0.00013698,2]
[332731434,1721491838535,-500.0,0.00013698,2]
[332731435,1721491838545,-500.0,0.00013698,2]
[332731436,1721491838554,-500.0,0.00013698,2]
[332731437,1721491838563,-500.0,0.00013698,2]
[332731438,1721491838572,-331.76661872,0.00013698,2]
[332731439,1721491838581,-500.0,0.00013698,2]
[332731440,1721491838591,-500.0,0.00013698,2]
[332731441,1721491838601,-500.0,0.00013698,2]
[332731442,1721491838611,-500.0,0.00013698,2]
[332731443,1721491838620,-166.29134175,0.00013698,2]
[332731444,1721491838629,-500.0,0.00013698,2]
[332731445,1721491838638,-650.0,0.00013698,2]
[332731446,1721491838648,-500.0,0.00013698,2]
[332731447,1721491838658,-500.0,0.00013698,2]
[332731448,1721491838668,-500.0,0.00013698,2]
[332731449,1721491838678,-500.0,0.00013698,2]
[332731450,1721491838688,-293.11655243,0.00013698,2]
[332731451,1721491838699,-500.0,0.00013698,2]
[332731452,1721491838708,-500.0,0.00013698,2]
[332731453,1721491838717,-782.98,0.00013698,2]
[332731454,1721491838727,-655.65,0.00013698,2]
[332731455,1721491838737,-714.59,0.00013698,2]
[332731456,1721491838748,-848.06,0.00013698,2]
[332731457,1721491838757,-500.0,0.00013698,2]
[332731458,1721491838767,-556.89,0.00013698,2]
[332731459,1721491838776,-500.0,0.00013698,2]
[332731460,1721491838785,-500.0,0.00013698,2]
[332731461,1721491838795,-563.41,0.00013698,2]
[332731462,1721491838804,-526.46111205,0.00013698,2]
[332731463,1721491838814,-2126.25,0.00013698,2]
[332731464,1721491838823,-500.0,0.00013698,2]
[332731465,1721491838834,-500.0,0.00013698,2]
[332731466,1721491838844,-500.0,0.00013698,2]
[332731467,1721491838855,-500.0,0.00013698,2]
[332731468,1721491838864,-1011.96,0.00013698,2]
[332731469,1721491838873,-504.00214773,0.00013698,2]
[332731470,1721491838883,-521.62,0.00013698,2]
[332731471,1721491838892,-669.01,0.00013698,2]
[332731472,1721491838903,-500.0,0.00013698,2]
[332731473,1721491838914,-602.39,0.00013698,2]
[332731474,1721491838924,-614.57,0.00013698,2]
[332731475,1721491838934,-515.02,0.00013698,2]
[332731476,1721491838944,-500.0,0.00013698,2]
[332731477,1721491838953,-500.0,0.00013698,2]
[332731478,1721491838962,-515.92,0.00013698,2]
[332731479,1721491838971,-1113.79,0.00013698,2]
[332731480,1721491838980,-500.0,0.00013698,2]
[332731481,1721491838990,-500.0,0.00013698,2]
[332731482,1721491838999,-150.0,0.00013698,2]
[332731483,1721491839008,-500.0,0.00013698,2]
[332731484,1721491839017,-500.0,0.00013698,2]
[332731485,1721491839028,-500.0,0.00013698,2]
[332731486,1721491839039,-307.95241331,0.00013698,2]
[332731487,1721491839049,-229.06770284,0.00013698,2]
[332731488,1721491839058,-315.44756831,0.00013698,2]
[332731489,1721491839067,-500.0,0.00013698,2]
[332731490,1721491839076,-500.0,0.00013698,2]
[332731491,1721491839086,-500.0,0.00013698,2]
[332731492,1721491839096,-477.02550557,0.00013698,2]
[332731493,1721491839106,-500.0,0.00013698,2]
[332731494,1721491839116,-500.0,0.00013698,2]
[332731495,1721491839126,-500.0,0.00013698,2]
[332731496,1721491839136,-500.0,0.00013698,2]
[332731497,1721491839145,-500.0,0.00013698,2]
[332731498,1721491839154,-500.0,0.00013698,2]
[332731499,1721491839164,-500.0,0.00013698,2]
[332731500,1721491839173,-500.0,0.00013698,2]
[332731501,1721491839182,-500.0,0.00013698,2]
[332731502,1721491839194,-500.0,0.00013698,2]
[332731503,1721491839203,-500.0,0.00013698,2]
[332731504,1721491839213,-500.0,0.00013698,2]
[332731505,1721491839223,-500.0,0.00013698,2]
[332731506,1721491839232,-500.0,0.00013698,2]
[332731507,1721491839244,-500.0,0.00013698,2]
[332731508,1721491839255,-500.0,0.00013698,2]
[332731509,1721491839267,-500.0,0.00013698,2]
[332731510,1721491839278,-577.46885793,0.00013698,2]
[332731511,1721491839288,-500.0,0.00013698,2]
[332731512,1721491839297,-500.0,0.00013698,2]
[332731513,1721491839306,-500.0,0.00013698,2]
[332731514,1721491839316,-500.0,0.00013698,2]
[332731515,1721491839325,-500.0,0.00013698,2]
[332731516,1721491839334,-500.0,0.00013698,2]
[332731517,1721491839344,-500.0,0.00013698,2]
[332731518,1721491839353,-500.0,0.00013698,2]
[332731519,1721491839363,-342.42642822,0.00013698,2]
[332731520,1721491839372,-500.0,0.00013698,2]
[332731521,1721491839381,-988.14,0.00013698,2]
[332731522,1721491839390,-500.0,0.00013698,2]
[332731523,1721491839399,-651.1,0.00013698,2]
[332731524,1721491839408,-1840.78,0.00013698,2]
[332731525,1721491839418,-520.43,0.00013698,2]
[332731526,1721491839427,-500.0,0.00013698,2]
[332731527,1721491839436,-500.0,0.00013698,2]
[332731528,1721491839446,-500.0,0.00013698,2]
[332731529,1721491839455,-2015.59,0.00013698,2]
[332731530,1721491839465,-500.0,0.00013698,2]
[332731531,1721491839475,-624.38,0.00013698,2]
[332731532,1721491839486,-2612.05,0.00013698,2]
[332731533,1721491839497,-1396.77,0.00013698,2]
[332731534,1721491839506,-2719.15,0.00013698,2]
[332731535,1721491839516,-500.0,0.00013698,2]
[332731536,1721491839525,-500.0,0.00013698,2]
[332731537,1721491839534,-500.0,0.00013698,2]
[332731538,1721491839544,-500.0,0.00013698,2]
[332731540,1721491839553,-500.0,0.00013698,2]
[332731541,1721491839563,-1856.83,0.00013698,2]
[332731542,1721491839573,-2255.51,0.00013698,2]
[332731543,1721491839581,-500.0,0.00013698,2]
[332731544,1721491839591,-1058.46,0.00013698,2]
[332731545,1721491839600,-800.8,0.00013698,2]
[332731546,1721491839611,-354.6790574,0.00013698,2]
[332731547,1721491839619,-8267.06,0.00013698,2]
[332731548,1721491839629,-668.99,0.00013698,2]
[332731550,1721491839638,-535.44,0.00013698,2]
[332731551,1721491839648,-1628.44,0.00013698,2]
[332731552,1721491839659,-822.27,0.00013698,2]
[332731553,1721491839670,-2530.62,0.00013698,2]
[332731554,1721491839681,-500.0,0.00013698,2]
[332731556,1721491839690,-591.5,0.00013698,2]
[332731558,1721491839699,-500.0,0.00013698,2]
[332731559,1721491839708,-500.0,0.00013698,2]
[332731561,1721491839719,-2698.83,0.00013698,2]
[332731563,1721491839727,-566.71,0.00013698,2]
[332731565,1721491839736,-18283.16,0.00013698,2]
[332731566,1721491839746,-323.24111165,0.00013698,2]
[332731568,1721491839755,-525.1829599,0.00013698,2]
[332731570,1721491839764,-501.29419541,0.00013698,2]
[332731572,1721491839773,-1361.13,0.00013698,2]
[332731574,1721491839782,-10857.78,0.00013698,2]
[332731577,1721491839791,-5123.03,0.00013698,2]
[332731579,1721491839801,-2956.43,0.00013698,2]
[332731581,1721491839810,-2576.95,0.00013698,2]
[332731583,1721491839820,-4053.88,0.00013698,2]
[332731585,1721491839830,-1212.29,0.00013698,2]
[332731587,1721491839839,-4342.27,0.00013698,2]
[332731589,1721491839850,-607.81,0.00013698,2]
[332731591,1721491839858,-3057.31,0.00013698,2]
[332731592,1721491839867,-1105.26,0.00013698,2]
[332731594,1721491839877,-151.26439546,0.00013698,2]
[332731596,1721491839887,-1138.03,0.00013698,2]
[332731597,1721491839898,-500.0,0.00013698,2]
[332731598,1721491839908,-500.0,0.00013698,2]
[332731599,1721491839919,-500.0,0.00013698,2]
[332731600,1721491839928,-713.69,0.00013698,2]
[332731601,1721491839937,-1987.26,0.00013698,2]
[332731602,1721491839947,-500.0,0.00013698,2]
[332731603,1721491839956,-582.61,0.00013698,2]
[332731604,1721491839965,-971.53,0.00013698,2]
[332731605,1721491839974,-500.0,0.00013698,2]
[332731606,1721491839984,-538.74851506,0.00013698,2]
[332731607,1721491839993,-1103.11,0.00013698,2]
[332731608,1721491840002,-3016.54,0.00013698,2]
[332731609,1721491840011,-2642.51,0.00013698,2]
[332731610,1721491840021,-500.0,0.00013698,2]
[332731611,1721491840029,-500.0,0.00013698,2]
[332731612,1721491840038,-775.05,0.00013698,2]
[332731613,1721491840048,-500.0,0.00013698,2]
[332731614,1721491840057,-500.0,0.00013698,2]
[332731615,1721491840066,-500.0,0.00013698,2]
[332731616,1721491840075,-500.0,0.00013698,2]
[332731617,1721491840085,-722.45,0.00013698,2]
[332731618,1721491840094,-1983.69,0.00013698,2]
[332731619,1721491840103,-1794.4,0.00013698,2]
[332731620,1721491840112,-500.0,0.00013698,2]
[332731621,1721491840121,-1474.23,0.00013698,2]
[332731622,1721491840131,-1052.11,0.00013698,2]
[332731623,1721491840141,-543.87,0.00013698,2]
[332731624,1721491840150,-500.0,0.00013698,2]
[332731625,1721491840159,-500.0,0.00013698,2]
[332731626,1721491840168,-500.0,0.00013698,2]
[332731627,1721491840178,-871.08,0.00013698,2]
[332731628,1721491840188,-345.18233406,0.00013698,2]
[332731629,1721491840201,-500.0,0.00013698,2]
[332731630,1721491840211,-512.83003469,0.00013698,2]
[332731631,1721491840220,-12531.48,0.00013698,2]
[332731632,1721491840231,-500.0,0.00013698,2]
[332731633,1721491840240,-2150.06,0.00013698,2]
[332731634,1721491840249,-2454.23,0.00013698,2]
[332731635,1721491840258,-615.65,0.00013698,2]
[332731636,1721491840268,-929.59,0.00013698,2]
[332731637,1721491840277,-500.0,0.00013698,2]
[332731638,1721491840286,-1951.92,0.00013698,2]
[332731639,1721491840295,-33428.01,0.00013698,2]
[332731640,1721491840304,-1639.6,0.00013698,2]
[332731641,1721491840313,-500.0,0.00013698,2]
[332731642,1721491840322,-3265.45,0.00013698,2]
[332731643,1721491840331,-500.0,0.00013698,2]
[332731644,1721491840340,-8673.81,0.00013698,2]
[332731645,1721491840354,-500.0,0.00013698,2]
[332731646,1721491840363,-3000.0,0.00013699,2]
[332731647,1721491840372,-519.009409,0.00013699,2]
[332731648,1721491840381,-8964.60462249,0.00013702,2]
[332731649,1721491840390,-8964.60462249,0.00013753,2]
[332731650,1721491840399,-8964.60462249,0.00013805,2]
[332731651,1721491840408,-1872.73080746,0.00013814,2]
[332731652,1721491840417,-42779.56074554,0.00013895,5]
[332731653,1721491840426,-50945.6488034,0.00013895,2]
[332731654,1721491840435,-50945.6488034,0.00013904,2]
[332731655,1721491840444,-500.0,0.00013913,2]
[332731656,1721491840453,-1176.2,0.00013914,2]
[332731657,1721491840462,-183.57010936,0.00013914,2]
[332731658,1721491840471,-4490.95,0.00013914,2]
[332731659,1721491840480,-3201.82,0.00013914,2]
[332731660,1721491840489,-1976.84,0.00013914,2]
[332731661,1721491840498,-1498.52,0.00013914,2]
[332731662,1721491840507,-1012.18,0.00013914,2]
[332731663,1721491840517,-500.0,0.00013914,2]
[332731664,1721491840526,-624.28,0.00013914,2]
[332731665,1721491840535,-500.0,0.00013914,2]
[332731666,1721491840545,-3772.99,0.00013914,2]
[332731667,1721491840554,-943.46,0.00013914,2]
[332731668,1721491840563,-5395.43,0.00013914,2]
[332731669,1721491840573,-500.0,0.00013914,2]
[332731670,1721491840582,-500.0,0.00013914,2]
[332731671,1721491840591,-1163.21,0.00013914,2]
[332731672,1721491840604,-1437.91,0.00013914,2]
[332731673,1721491840613,-8496.71,0.00013914,2]
[332731674,1721491840622,-500.0,0.00013914,2]
[332731675,1721491840631,-500.0,0.00013914,2]
[332731676,1721491840643,-1168.15,0.00013914,2]
[332731677,1721491840652,-2133.89,0.00013914,2]
[332731678,1721491840662,-5084.97,0.00013914,2]
[332731679,1721491840671,-500.0,0.00013914,2]
[332731680,1721491840681,-1470.48,0.00013915,2]
[332731681,1721491840691,-2572.28,0.00013915,2]
[332731682,1721491840701,-976.68,0.00013915,2]
[332731683,1721491840711,-683.32,0.00013915,2]
[332731684,1721491840721,-537.23,0.00013915,2]
[332731685,1721491840732,-500.0,0.00013915,2]
[332731686,1721491840742,-1643.72,0.00013915,2]
[332731687,1721491840752,-500.0,0.00013915,2]
[332731688,1721491840763,-500.0,0.00013915,2]
[332731689,1721491840773,-500.19,0.00013915,2]
[332731690,1721491840783,-1657.95,0.00013915,2]
[332731691,1721491840793,-500.0,0.00013915,2]
[332731692,1721491840803,-500.0,0.00013915,2]
[332731693,1721491840813,-1215.39,0.00013915,2]
[332731694,1721491840823,-1601.33,0.00013915,2]
[332731695,1721491840833,-814.1,0.00013915,2]
[332731696,1721491840844,-612.34,0.00013915,2]
[332731697,1721491840858,-678.82,0.00013915,2]
[332731698,1721491840868,-500.0,0.00013915,2]
[332731699,1721491840878,-500.0,0.00013915,2]
[332731700,1721491840887,-565.95,0.00013915,2]
[332731701,1721491840897,-227.5005451,0.00013915,2]
[332731702,1721491840906,-1119.4,0.00013915,2]
[332731703,1721491840915,-500.0,0.00013915,2]
[332731704,1721491840924,-1506.96,0.00013915,2]
[332731705,1721491840933,-500.0,0.00013915,2]
[332731706,1721491840942,-500.0,0.00013915,2]
[332731707,1721491840951,-500.0,0.00013915,2]
[332731708,1721491840961,-748.75,0.00013915,2]
[332731709,1721491840970,-500.0,0.00013915,2]
[332731710,1721491840980,-500.0,0.00013915,2]
[332731711,1721491840990,-1164.71,0.00013915,2]
[332731712,1721491840999,-500.0,0.00013915,2]
[332731713,1721491841009,-519.94,0.00013915,2]
[332731714,1721491841019,-800.18,0.00013915,2]
[332731715,1721491841030,-500.0,0.00013915,2]
[332731716,1721491841040,-500.0,0.00013915,2]
[332731717,1721491841049,-3039.08,0.00013915,2]
[332731718,1721491841059,-2498.78,0.00013938,2]
[332731719,1721491841069,-543.78,0.00013938,2]
[332731720,1721491841078,-500.0,0.00013938,2]
[332731721,1721491841087,-3805.06,0.00013938,2]
[332731722,1721491841098,-10010.45,0.00013938,2]
[332731723,1721491841107,-500.0,0.00013972,2]
[332731724,1721491841116,-500.0,0.00013972,2]
[332731725,1721491841125,-782.98,0.00013972,2]
[332731726,1721491841135,-655.65,0.00013972,2]
[332731727,1721491841144,-714.59,0.00013972,2]
[332731728,1721491841347,-848.06,0.00013972,2]
[332731729,1721491841357,-500.0,0.00013972,2]
[332731730,1721491841367,-556.89,0.00013972,2]
[332731731,1721491841376,-500.0,0.00013972,2]
[332731732,1721491841385,-500.0,0.00013972,2]
[332731733,1721491841395,-563.41,0.00013972,2]
[332731734,1721491841404,-2126.25,0.00013972,2]
[332731735,1721491841413,-500.0,0.00013972,2]
[332731737,1721491841423,-500.0,0.00013972,2]
[332731739,1721491841432,-500.0,0.00013972,2]
[332731741,1721491841441,-1011.96,0.00013972,2]
[332731743,1721491841451,-521.62,0.00013972,2]
[332731745,1721491841461,-669.01,0.00013972,2]
[332731747,1721491841470,-500.0,0.00013972,2]
[332731749,1721491841480,-614.57,0.00013972,2]
[332731751,1721491841489,-515.02,0.00013972,2]
[332731753,1721491841499,-500.0,0.00013972,2]
[332731755,1721491841507,-500.0,0.00013972,2]
[332731757,1721491841517,-515.92,0.00013972,2]
[332731759,1721491841526,-1113.79,0.00013972,2]
[332731760,1721491841536,-500.0,0.00013972,2]
[332731762,1721491841546,-500.0,0.00013972,2]
[332731764,1721491841555,-182.99629275,0.00013972,2]
[332731766,1721491841564,-500.0,0.00013972,2]
[332731768,1721491841573,-500.0,0.00013972,2]
[332731770,1721491841582,-500.0,0.00013972,2]
[332731772,1721491841591,-500.0,0.00013972,2]
[332731774,1721491841602,-500.0,0.00013972,2]
[332731776,1721491841611,-500.0,0.00013972,2]
[332731778,1721491841620,-988.14,0.00013972,2]
[332731780,1721491841629,-500.0,0.00013972,2]
[332731782,1721491841639,-651.1,0.00013972,2]
[332731784,1721491841649,-1840.78,0.00013972,2]
[332731786,1721491841659,-520.43,0.00013972,2]
[332731788,1721491841668,-500.0,0.00013972,2]
[332731790,1721491841677,-500.0,0.00013972,2]
[332731792,1721491841686,-500.0,0.00013972,2]
[332731794,1721491841695,-2015.59,0.00013972,2]
[332731796,1721491841704,-500.0,0.00013972,2]
[332731797,1721491841714,-624.38,0.00013972,2]
[332731798,1721491841723,-2612.05,0.00013972,2]
[332731799,1721491841732,-1396.77,0.00013972,2]
[332731801,1721491841742,-2719.15,0.00013972,2]
[332731802,1721491841751,-500.0,0.00013972,2]
[332731803,1721491841760,-500.0,0.00013972,2]
[332731804,1721491841770,-500.0,0.00013972,2]
[332731805,1721491841779,-511.02301535,0.00013972,2]
[332731806,1721491841789,-1856.83,0.00013972,2]
[332731807,1721491841798,-2255.51,0.00013972,2]
[332731808,1721491841807,-500.0,0.00013972,2]
[332731809,1721491841817,-1058.46,0.00013972,2]
[332731810,1721491841826,-800.8,0.00013972,2]
[332731811,1721491841836,-8267.06,0.00013972,2]
[332731812,1721491841847,-668.99,0.00013972,2]
[332731813,1721491841856,-535.44,0.00013972,2]
[332731814,1721491841866,-1628.44,0.00013972,2]
[332731815,1721491841876,-822.27,0.00013972,2]
[332731816,1721491841885,-2530.62,0.00013972,2]
[332731817,1721491841894,-591.5,0.00013972,2]
[332731818,1721491841904,-500.0,0.00013972,2]
[332731819,1721491841913,-500.0,0.00013972,2]
[332731820,1721491841923,-2698.83,0.00013972,2]
[332731821,1721491841933,-566.71,0.00013972,2]
[332731822,1721491841943,-18283.16,0.00013972,2]
[332731823,1721491841953,-1361.13,0.00013972,2]
[332731824,1721491841962,-10857.78,0.00013972,2]
[332731825,1721491841972,-5123.03,0.00013972,2]
[332731826,1721491841982,-2956.43,0.00013972,2]
[332731827,1721491841991,-2576.95,0.00013972,2]
[332731828,1721491842000,-4053.88,0.00013972,2]
[332731829,1721491842009,-1212.29,0.00013972,2]
[332731830,1721491842019,-4342.27,0.00013972,2]
[332731831,1721491842027,-607.81,0.00013972,2]
[332731832,1721491842037,-3057.31,0.00013972,2]
[332731833,1721491842046,-1105.26,0.00013972,2]
[332731834,1721491842055,-1138.03,0.00013972,2]
[332731835,1721491842065,-227.16455224,0.00013972,2]
[332731836,1721491842075,-500.0,0.00013972,2]
[332731837,1721491842084,-500.0,0.00013972,2]
[332731838,1721491842095,-713.69,0.00013972,2]
[332731839,1721491842104,-1987.26,0.00013972,2]
[332731840,1721491842113,-500.0,0.00013972,2]
[332731841,1721491842123,-582.61,0.00013972,2]
[332731842,1721491842132,-971.53,0.00013972,2]
[332731843,1721491842143,-500.0,0.00013972,2]
[332731844,1721491842152,-1103.11,0.00013972,2]
[332731845,1721491842162,-3016.54,0.00013972,2]
[332731846,1721491842171,-2642.51,0.00013972,2]
[332731847,1721491842180,-500.0,0.00013972,2]
[332731848,1721491842191,-500.0,0.00013972,2]
[332731849,1721491842202,-775.05,0.00013972,2]
[332731850,1721491842211,-500.0,0.00013972,2]
[332731851,1721491842220,-500.0,0.00013972,2]
[332731852,1721491842231,-500.0,0.00013972,2]
[332731853,1721491842240,-500.0,0.00013972,2]
[332731854,1721491842249,-722.45,0.00013972,2]
[332731855,1721491842258,-1983.69,0.00013972,2]
[332731856,1721491842268,-1794.4,0.00013972,2]
[332731857,1721491842278,-394.64841131,0.00013972,2]
[332731858,1721491842288,-1474.23,0.00013972,2]
[332731859,1721491842298,-1052.11,0.00013972,2]
[332731860,1721491842307,-543.87,0.00013972,2]
[332731861,1721491842317,-500.0,0.00013972,2]
[332731862,1721491842326,-500.0,0.00013972,2]
[332731863,1721491842336,-500.0,0.00013972,2]
[332731864,1721491842348,-871.08,0.00013972,2]
[332731865,1721491842356,-500.0,0.00013972,2]
[332731866,1721491842366,-12531.48,0.00013972,2]
[332731867,1721491842375,-500.0,0.00013972,2]
[332731868,1721491842384,-2150.06,0.00013972,2]
[332731869,1721491842393,-2454.23,0.00013972,2]
[332731870,1721491842403,-615.65,0.00013972,2]
[332731871,1721491842412,-929.59,0.00013972,2]
[332731872,1721491842421,-500.0,0.00013972,2]
[332731873,1721491842430,-1951.92,0.00013972,2]
[332731874,1721491842439,-33428.01,0.00013972,2]
[332731875,1721491842448,-1639.6,0.00013972,2]
[332731876,1721491842458,-500.0,0.00013972,2]
[332731877,1721491842468,-3265.45,0.00013972,2]
[332731878,1721491842486,-500.0,0.00013972,2]
[332731879,1721491842497,-8673.81,0.00013972,2]
[332731880,1721491842507,-500.0,0.00013972,2]
[332731881,1721491842517,-1176.2,0.00014188,2]
[332731882,1721491842528,-4490.95,0.00014188,2]
[332731883,1721491842538,-3201.82,0.00014188,2]
[332731884,1721491842548,-1976.84,0.00014188,2]
[332731886,1721491842558,-1498.52,0.00014188,2]
[332731887,1721491842568,-1012.18,0.00014188,2]
[332731888,1721491842578,-500.0,0.00014188,2]
[332731889,1721491842588,-624.28,0.00014188,2]
[332731890,1721491842598,-500.0,0.00014188,2]
[332731891,1721491842608,-3772.99,0.00014188,2]
[332731892,1721491842619,-943.46,0.00014188,2]
[332731893,1721491842628,-5395.43,0.00014188,2]
[332731894,1721491842637,-500.0,0.00014188,2]
[332731895,1721491842647,-500.0,0.00014188,2]
[332731896,1721491842656,-1163.21,0.00014188,2]
[332731897,1721491842666,-1437.91,0.00014188,2]
[332731898,1721491842677,-8496.71,0.00014188,2]
[332731899,1721491842687,-500.0,0.00014188,2]
[332731901,1721491842697,-500.0,0.00014188,2]
[332731902,1721491842709,-1168.15,0.00014188,2]
[332731904,1721491842719,-2133.89,0.00014188,2]
[332731906,1721491842729,-5084.97,0.00014188,2]
[332731911,1721491842740,-500.0,0.00014188,2]
[332731915,1721491842750,-1470.48,0.00014189,2]
[332731918,1721491842760,-2572.28,0.00014189,2]
[332731920,1721491842770,-976.68,0.00014189,2]
[332731921,1721491842780,-683.32,0.00014189,2]